Workbook

Sheet Sheet1
A1: 1.1 | B1: 30 | AA1: 0.6 | AB1: 10
B2: 週 | C2: 無感染者 (免疫なし） | D2: 感染者 | E2: 治癒者 (隔離者） | G2: 感染率 (1週間） | H2: 治癒率 (1週間） | AA2: 0.65 | AB2: 15
B3: 1 | C3: 99 | D3: =100-C3 -> 1 | E3: 0 | G3: =G4*100&"人" -> 1.5人 | H3: =H4*100& " %" -> 70 % | I3: 15 | J3: 70 | AA3: 0.7 | AB3: 20
B4: 2 | C4: =C3*(1-$G$4*D3) -> 97.515 | D4: =D3*(1+$G$4*C3-$H$4) -> 1.785 | E4: =E3+D3*$H$4 -> 0.7 | G4: =I3/1000 -> 0.015 | H4: =J3/100 -> 0.7 | AA4: 0.75 | AB4: 25
B5: 3 | C5: =C4*(1-$G$4*D4) -> 94.90403588 | D5: =D4*(1+$G$4*C4-$H$4) -> 3.146464125 | E5: =E4+D4*$H$4 -> 1.9495 | AA5: 0.8 | AB5: 30
B6: 4 | C6: =C5*(1-$G$4*D5) -> 90.42485371 | D6: =D5*(1+$G$4*C5-$H$4) -> 5.4231214 | E6: =E5+D5*$H$4 -> 4.152024887 | AA6: 0.85 | AB6: 35
B7: 5 | C7: =C6*(1-$G$4*D6) -> 83.06907932 | D7: =D6*(1+$G$4*C6-$H$4) -> 8.98271081 | E7: =E6+D6*$H$4 -> 7.948209868 | AA7: 0.9 | AB7: 40
B8: 6 | C8: =C7*(1-$G$4*D7) -> 71.87629657 | D8: =D7*(1+$G$4*C7-$H$4) -> 13.88759599 | E8: =E7+D7*$H$4 -> 14.23610743 | AA8: 0.95 | AB8: 45
B9: 7 | C9: =C8*(1-$G$4*D8) -> 56.90346205 | D9: =D8*(1+$G$4*C8-$H$4) -> 19.13911332 | E9: =E8+D8*$H$4 -> 23.95742463 | AA9: 1 | AB9: 50
B10: 8 | C10: =C9*(1-$G$4*D9) -> 40.56723492 | D10: =D9*(1+$G$4*C9-$H$4) -> 22.07796113 | E10: =E9+D9*$H$4 -> 37.35480396 | AA10: 1.05 | AB10: 55
B11: 9 | C11: =C10*(1-$G$4*D10) -> 27.13260738 | D11: =D10*(1+$G$4*C10-$H$4) -> 20.05801587 | E11: =E10+D10*$H$4 -> 52.80937675 | AA11: 1.1 | AB11: 60
B12: 10 | C12: =C11*(1-$G$4*D11) -> 18.96921334 | D12: =D11*(1+$G$4*C11-$H$4) -> 14.1807988 | E12: =E11+D11*$H$4 -> 66.84998785 | AA12: 1.15 | AB12: 65
B13: 11 | C13: =C12*(1-$G$4*D12) -> 14.93423437 | D13: =D12*(1+$G$4*C12-$H$4) -> 8.289218609 | E13: =E12+D12*$H$4 -> 76.77654702 | AA13: 1.2 | AB13: 70
B14: 12 | C14: =C13*(1-$G$4*D13) -> 13.07733737 | D14: =D13*(1+$G$4*C13-$H$4) -> 4.343662585 | E14: =E13+D13*$H$4 -> 82.57900004 | AA14: 1.25 | AB14: 75
B15: 13 | C15: =C14*(1-$G$4*D14) -> 12.22528426 | D15: =D14*(1+$G$4*C14-$H$4) -> 2.155151891 | E15: =E14+D14*$H$4 -> 85.61956385 | AA15: 1.3 | AB15: 80
B16: 14 | C16: =C15*(1-$G$4*D15) -> 11.83007409 | D16: =D15*(1+$G$4*C15-$H$4) -> 1.041755735 | E16: =E15+D15*$H$4 -> 87.12817018 | G16: 免疫 | AA16: 1.35 | AB16: 85
B17: 15 | C17: =C16*(1-$G$4*D16) -> 11.64521338 | D17: =D16*(1+$G$4*C16-$H$4) -> 0.4973874332 | E17: =E16+D16*$H$4 -> 87.85739919 | AA17: 1.4 | AB17: 90
B18: 16 | C18: =C17*(1-$G$4*D17) -> 11.55833063 | D18: =D17*(1+$G$4*C17-$H$4) -> 0.2360989718 | E18: =E17+D17*$H$4 -> 88.20557039 | AA18: 1.45 | AB18: 95
B19: 17 | C19: =C18*(1-$G$4*D18) -> 11.51739698 | D19: =D18*(1+$G$4*C18-$H$4) -> 0.1117633412 | E19: =E18+D18*$H$4 -> 88.37083967 | AA19: 1.5
B20: 18 | C20: =C19*(1-$G$4*D19) -> 11.49808864 | D20: =D19*(1+$G$4*C19-$H$4) -> 0.05283734391 | E20: =E19+D19*$H$4 -> 88.44907401 | AA20: 1.55
B21: 19 | C21: =C20*(1-$G$4*D20) -> 11.48897572 | D21: =D20*(1+$G$4*C20-$H$4) -> 0.02496413013 | E21: =E20+D20*$H$4 -> 88.48606015 | AA21: 1.6
B22: 20 | C22: =C21*(1-$G$4*D21) -> 11.48467353 | D22: =D21*(1+$G$4*C21-$H$4) -> 0.01179142331 | E22: =E21+D21*$H$4 -> 88.50353505 | AA22: 1.65
B23: 21 | C23: =C22*(1-$G$4*D22) -> 11.48264222 | D23: =D22*(1+$G$4*C22-$H$4) -> 0.005568736701 | E23: =E22+D22*$H$4 -> 88.51178904 | AA23: 1.7
B24: 22 | C24: =C23*(1-$G$4*D23) -> 11.48168306 | D24: =D23*(1+$G$4*C23-$H$4) -> 0.002629778178 | E24: =E23+D23*$H$4 -> 88.51568716 | AA24: 1.75
B25: 23 | C25: =C24*(1-$G$4*D24) -> 11.48123015 | D25: =D24*(1+$G$4*C24-$H$4) -> 0.001241847647 | E25: =E24+D24*$H$4 -> 88.517528 | AA25: 1.8
B26: 24 | C26: =C25*(1-$G$4*D25) -> 11.48101628 | D26: =D25*(1+$G$4*C25-$H$4) -> 0.0005864233738 | E26: =E25+D25*$H$4 -> 88.5183973 | AA26: 1.85
AA27: 1.9
AA28: 1.95
AA29: 2
AA30: 2.05
AA31: 2.1
AA32: 2.15
AA33: 2.2
AA34: 2.25
AA35: 2.3
AA36: 2.35
AA37: 2.4
AA38: 2.45
AA39: 2.5
AA40: 2.55
AA41: 2.6
AA42: 2.65
AA43: 2.7
AA44: 2.75
AA45: 2.8
AA46: 2.85
AA47: 2.9
AA48: 2.95
AA49: 3
AA50: 3.05
AA51: 3.1
AA52: 3.15
AA53: 3.2
AA54: 3.25
AA55: 3.3
AA56: 3.35
AA57: 3.4
AA58: 3.45
AA59: 3.5
AA60: 3.55
AA61: 3.6
AA62: 3.65
AA63: 3.7
AA64: 3.75
AA65: 3.8
AA66: 3.85
AA67: 3.9
AA68: 3.95
AA69: 4
AA70: 4.05
AA71: 4.1
AA72: 4.15
AA73: 4.2
AA74: 4.25
AA75: 4.3
AA76: 4.35
AA77: 4.4
AA78: 4.45
AA79: 4.5
AA80: 4.55
AA81: 4.6
AA82: 4.65
AA83: 4.7
AA84: 4.75
AA85: 4.8
AA86: 4.85
AA87: 4.9
AA88: 4.95
AA89: 5
AA90: 5.05
AA91: 5.1
AA92: 5.15
AA93: 5.2
AA94: 5.25
AA95: 5.3
AA96: 5.35
AA97: 5.4
AA98: 5.45
AA99: 5.5
AA100: 5.55
AA101: 5.6
AA102: 5.65
AA103: 5.7
AA104: 5.75
AA105: 5.8
AA106: 5.85
AA107: 5.9
AA108: 5.95
AA109: 6
AA110: 6.05
AA111: 6.1

Sheet Sheet2

Sheet Sheet3
